[Event "*** Titled Tuesday 3|2 Blitz (Early)"]
[Site "Chess.com"]
[Date "2016.12.06"]
[Round "2"]
[White "Kouzari"]
[Black "Salem-AR"]
[Result "1-0"]
[WhiteElo "2482"]
[BlackElo "2679"]
[TimeControl "180+2"]
[EndTime "11:21:18 PST"]
[Termination "Kouzari won by resignation"]

1. d4 {[%clk 0:03:02]} 1... Nf6 {[%clk 0:02:58.4]} 2. c4 {[%clk 0:03:03.9]} 2...
g6 {[%clk 0:02:51.1]} 3. Nc3 {[%clk 0:03:05.4]} 3... Bg7 {[%clk 0:02:52.1]} 4.
e4 {[%clk 0:03:05.3]} 4... d6 {[%clk 0:02:53.7]} 5. f3 {[%clk 0:03:07]} 5... O-O
{[%clk 0:02:54]} 6. Be3 {[%clk 0:03:08.6]} 6... c5 {[%clk 0:02:55.4]} 7. dxc5
{[%clk 0:03:09.8]} 7... dxc5 {[%clk 0:02:56.6]} 8. Qxd8 {[%clk 0:03:11.2]} 8...
Rxd8 {[%clk 0:02:58.5]} 9. Bxc5 {[%clk 0:03:12.6]} 9... Nc6 {[%clk 0:03:00]} 10.
Nge2 {[%clk 0:03:14.1]} 10... Nd7 {[%clk 0:02:59.4]} 11. Be3 {[%clk 0:03:13.4]}
11... Nde5 {[%clk 0:02:55.2]} 12. Nf4 {[%clk 0:03:13.4]} 12... Nb4 {[%clk
0:02:45.7]} 13. Rc1 {[%clk 0:03:13.4]} 13... Bh6 {[%clk 0:02:44.4]} 14. Ncd5
{[%clk 0:02:49]} 14... Nbc6 {[%clk 0:02:11.5]} 15. Rd1 {[%clk 0:01:58.3]} 15...
Kg7 {[%clk 0:01:56.9]} 16. Be2 {[%clk 0:01:52.2]} 16... b6 {[%clk 0:01:50.5]}
17. Kf2 {[%clk 0:01:50.4]} 17... Bb7 {[%clk 0:01:48.7]} 18. b3 {[%clk
0:01:51.4]} 18... e6 {[%clk 0:01:34]} 19. Nc7 {[%clk 0:01:43.5]} 19... Rxd1
{[%clk 0:01:12.8]} 20. Rxd1 {[%clk 0:01:43.4]} 20... Rb8 {[%clk 0:01:13.6]} 21.
g4 {[%clk 0:01:03.6]} 21... Kg8 {[%clk 0:01:03.2]} 22. h4 {[%clk 0:01:02.9]}
22... Bf8 {[%clk 0:01:02.7]} 23. Nb5 {[%clk 0:00:54.4]} 23... Nb4 {[%clk
0:01:02.6]} 24. Rd2 {[%clk 0:00:49.9]} 24... Bc6 {[%clk 0:00:57]} 25. Nxa7
{[%clk 0:00:46.9]} 25... Be8 {[%clk 0:00:55.6]} 26. a3 {[%clk 0:00:43.1]} 26...
Na6 {[%clk 0:00:50.1]} 27. Nb5 {[%clk 0:00:39.4]} 27... Bxb5 {[%clk 0:00:40.3]}
28. cxb5 {[%clk 0:00:40.2]} 28... Nc5 {[%clk 0:00:42]} 29. b4 {[%clk 0:00:39.2]}
29... Na4 {[%clk 0:00:42.9]} 30. Rc2 {[%clk 0:00:39.9]} 30... Rd8 {[%clk
0:00:37.4]} 31. g5 {[%clk 0:00:38.7]} 31... Be7 {[%clk 0:00:38]} 32. Rc7 {[%clk
0:00:37.6]} 32... Bd6 {[%clk 0:00:37.9]} 33. Ra7 {[%clk 0:00:36.3]} 33... Nc3
{[%clk 0:00:36.7]} 34. Bxb6 {[%clk 0:00:36.8]} 34... Rc8 {[%clk 0:00:32.5]} 35.
Bd4 {[%clk 0:00:32]} 35... Nxe2 {[%clk 0:00:21.7]} 36. Kxe2 {[%clk 0:00:32.6]}
36... Nc4 {[%clk 0:00:22.6]} 37. Nd3 {[%clk 0:00:27.4]} 37... Rb8 {[%clk
0:00:19]} 38. a4 {[%clk 0:00:28.3]} 38... Kf8 {[%clk 0:00:20.2]} 39. Bc5 {[%clk
0:00:29.3]} 39... Ke8 {[%clk 0:00:20.7]} 40. Bxd6 {[%clk 0:00:30.2]} 40... Nxd6
{[%clk 0:00:22.6]} 41. Nc5 {[%clk 0:00:31.4]} 41... Nc4 {[%clk 0:00:21.8]} 42.
Kd3 {[%clk 0:00:31.5]} 42... Ne5+ {[%clk 0:00:22.2]} 43. Kc3 {[%clk 0:00:32.2]}
43... Nxf3 {[%clk 0:00:23.4]} 44. Rb7 {[%clk 0:00:33.3]} 44... Ra8 {[%clk
0:00:21]} 45. a5 {[%clk 0:00:34.3]} 45... Nxh4 {[%clk 0:00:22.2]} 46. a6 {[%clk
0:00:35.6]} 46... Nf3 {[%clk 0:00:23.4]} 47. a7 {[%clk 0:00:36.8]} 1-0

[Event "*** Titled Tuesday 3|2 Blitz (Early)"]
[Site "Chess.com"]
[Date "2016.12.06"]
[Round "2"]
[White "Morshynska"]
[Black "AungTZ"]
[Result "1/2-1/2"]
[WhiteElo "2141"]
[BlackElo "2109"]
[TimeControl "180+2"]
[EndTime "11:21:31 PST"]
[Termination "Game drawn by repetition"]

1. Nf3 {[%clk 0:03:02]} 1... d5 {[%clk 0:02:57.2]} 2. g3 {[%clk 0:03:03]} 2...
Nf6 {[%clk 0:02:54.7]} 3. Bg2 {[%clk 0:03:02.1]} 3... e6 {[%clk 0:02:54.5]} 4.
d4 {[%clk 0:02:59.8]} 4... Be7 {[%clk 0:02:55.5]} 5. c4 {[%clk 0:03:00.5]} 5...
c5 {[%clk 0:02:56.6]} 6. dxc5 {[%clk 0:02:55.9]} 6... Bxc5 {[%clk 0:02:56.5]} 7.
Nc3 {[%clk 0:02:42.5]} 7... dxc4 {[%clk 0:02:42.5]} 8. Qa4+ {[%clk 0:02:36.3]}
8... Nbd7 {[%clk 0:02:32.9]} 9. Qxc4 {[%clk 0:02:32.9]} 9... O-O {[%clk
0:02:33.4]} 10. O-O {[%clk 0:02:33.4]} 10... a6 {[%clk 0:02:32.6]} 11. Bf4
{[%clk 0:02:28.4]} 11... b5 {[%clk 0:02:28.5]} 12. Qd3 {[%clk 0:02:28.8]} 12...
Bb7 {[%clk 0:02:27.9]} 13. Rad1 {[%clk 0:02:18.7]} 13... Qb6 {[%clk 0:02:27.3]}
14. Ne5 {[%clk 0:02:05]} 14... Nxe5 {[%clk 0:02:17.4]} 15. Bxe5 {[%clk
0:02:05.1]} 15... Bxg2 {[%clk 0:02:17.9]} 16. Kxg2 {[%clk 0:02:07]} 16... Ng4
{[%clk 0:02:13.5]} 17. Bd4 {[%clk 0:01:53.8]} 17... e5 {[%clk 0:01:56.4]} 18.
Nd5 {[%clk 0:01:32.1]} 18... Qc6 {[%clk 0:01:53.1]} 19. Bxc5 {[%clk 0:01:30.9]}
19... Qxc5 {[%clk 0:01:52.6]} 20. Qf5 {[%clk 0:01:08.1]} 20... Nh6 {[%clk
0:01:33.7]} 21. Qxe5 {[%clk 0:00:54.5]} 21... Qc6 {[%clk 0:01:20.6]} 22. Kg1
{[%clk 0:00:43.6]} 22... Kh8 {[%clk 0:01:20.7]} 23. Rd2 {[%clk 0:00:27.8]} 23...
Rae8 {[%clk 0:01:17.4]} 24. Qc3 {[%clk 0:00:28]} 24... Qg6 {[%clk 0:01:08.1]}
25. Rfd1 {[%clk 0:00:20.8]} 25... Ng4 {[%clk 0:01:07.1]} 26. Qf3 {[%clk
0:00:17.9]} 26... Ne5 {[%clk 0:01:01.1]} 27. Qf4 {[%clk 0:00:18.7]} 27... Nc4
{[%clk 0:01:01.3]} 28. Rd4 {[%clk 0:00:16.3]} 28... Rxe2 {[%clk 0:01:00.9]} 29.
b3 {[%clk 0:00:16.4]} 29... Ne5 {[%clk 0:00:59.7]} 30. Ne3 {[%clk 0:00:17.3]}
30... Qf6 {[%clk 0:00:55.1]} 31. Qxf6 {[%clk 0:00:13.7]} 31... gxf6 {[%clk
0:00:55.5]} 32. Rd8 {[%clk 0:00:15.6]} 32... Rxd8 {[%clk 0:00:55.7]} 33. Rxd8+
{[%clk 0:00:17.5]} 33... Kg7 {[%clk 0:00:57.3]} 34. a4 {[%clk 0:00:18.6]} 34...
Rb2 {[%clk 0:00:53.1]} 35. axb5 {[%clk 0:00:18.8]} 35... axb5 {[%clk 0:00:53.2]}
36. Nf5+ {[%clk 0:00:19.7]} 36... Kg6 {[%clk 0:00:53.4]} 37. Nd6 {[%clk
0:00:20.4]} 37... Rxb3 {[%clk 0:00:51.2]} 38. Rb8 {[%clk 0:00:22.3]} 38... b4
{[%clk 0:00:51]} 39. Ne4 {[%clk 0:00:23.2]} 39... Rb1+ {[%clk 0:00:49.4]} 40.
Kg2 {[%clk 0:00:24.4]} 40... Nd3 {[%clk 0:00:48.1]} 41. h4 {[%clk 0:00:23.6]}
41... h5 {[%clk 0:00:47.1]} 42. Kf3 {[%clk 0:00:24.4]} 42... Ne5+ {[%clk
0:00:42.8]} 43. Ke3 {[%clk 0:00:25.1]} 43... Re1+ {[%clk 0:00:41.6]} 44. Kf4
{[%clk 0:00:21.7]} 44... Nd3+ {[%clk 0:00:41.3]} 45. Kf3 {[%clk 0:00:22.9]}
45... Ne5+ {[%clk 0:00:41.2]} 46. Kf4 {[%clk 0:00:24.1]} 46... Nd3+ {[%clk
0:00:37.8]} 47. Kf3 {[%clk 0:00:25.1]} 47... Ne5+ {[%clk 0:00:31.9]} 48. Kf4
{[%clk 0:00:26.2]} 1/2-1/2

[Event "*** Titled Tuesday 3|2 Blitz (Early)"]
[Site "Chess.com"]
[Date "2016.12.06"]
[Round "2"]
[White "tango_argentino"]
[Black "Generalas"]
[Result "1-0"]
[WhiteElo "2349"]
[BlackElo "2212"]
[TimeControl "180+2"]
[EndTime "11:21:42 PST"]
[Termination "tango_argentino won by resignation"]

1. e4 {[%clk 0:03:01.9]} 1... e5 {[%clk 0:03:00.3]} 2. Nf3 {[%clk 0:03:02.1]}
2... Nc6 {[%clk 0:03:01]} 3. Bc4 {[%clk 0:03:03.1]} 3... Nf6 {[%clk 0:03:01.2]}
4. d3 {[%clk 0:03:03.5]} 4... Be7 {[%clk 0:03:01.8]} 5. c3 {[%clk 0:03:03.6]}
5... O-O {[%clk 0:03:01.8]} 6. O-O {[%clk 0:03:04.9]} 6... d5 {[%clk 0:03:01.3]}
7. exd5 {[%clk 0:03:06.8]} 7... Nxd5 {[%clk 0:03:02.6]} 8. Re1 {[%clk
0:03:04.6]} 8... Bg4 {[%clk 0:03:02.7]} 9. h3 {[%clk 0:03:05.6]} 9... Bh5 {[%clk
0:03:03.4]} 10. Nbd2 {[%clk 0:03:05.5]} 10... Nb6 {[%clk 0:02:54]} 11. Bb5
{[%clk 0:03:06.1]} 11... f6 {[%clk 0:02:52.9]} 12. Bxc6 {[%clk 0:02:49.2]} 12...
bxc6 {[%clk 0:02:53.3]} 13. Ne4 {[%clk 0:02:50.4]} 13... Qd7 {[%clk 0:02:48.7]}
14. Ng3 {[%clk 0:02:51]} 14... Bg6 {[%clk 0:02:46.5]} 15. d4 {[%clk 0:02:51.5]}
15... Rad8 {[%clk 0:02:44.3]} 16. Be3 {[%clk 0:02:52]} 16... Nd5 {[%clk
0:02:42.1]} 17. dxe5 {[%clk 0:02:50.4]} 17... Nxe3 {[%clk 0:02:40.2]} 18. Qxd7
{[%clk 0:02:51.3]} 18... Rxd7 {[%clk 0:02:40.9]} 19. Rxe3 {[%clk 0:02:52.1]}
19... Bc5 {[%clk 0:02:40.7]} 20. Re2 {[%clk 0:02:42.8]} 20... Rfd8 {[%clk
0:02:07.7]} 21. exf6 {[%clk 0:02:40.1]} 21... gxf6 {[%clk 0:01:57.6]} 22. Rae1
{[%clk 0:02:37.5]} 22... Kf7 {[%clk 0:01:44]} 23. Ne4 {[%clk 0:02:33.7]} 23...
Bb6 {[%clk 0:01:27.7]} 24. Nh4 {[%clk 0:02:21.4]} 24... Rd1 {[%clk 0:00:38.1]}
25. Nxg6 {[%clk 0:02:12.4]} 25... hxg6 {[%clk 0:00:38.4]} 26. g3 {[%clk
0:02:11.9]} 26... Rxe1+ {[%clk 0:00:29]} 27. Rxe1 {[%clk 0:02:12.7]} 27... Rd3
{[%clk 0:00:29.6]} 28. Kg2 {[%clk 0:02:12.3]} 28... f5 {[%clk 0:00:30]} 29. Ng5+
{[%clk 0:02:12.9]} 29... Kf6 {[%clk 0:00:31.5]} 30. h4 {[%clk 0:02:14.2]} 30...
Rd2 {[%clk 0:00:32.1]} 31. Re6+ {[%clk 0:02:13.2]} 31... Kg7 {[%clk 0:00:32.9]}
32. Nh3 {[%clk 0:02:13.1]} 32... Rxb2 {[%clk 0:00:32.8]} 33. Rxc6 {[%clk
0:02:13.2]} 33... Rxa2 {[%clk 0:00:33.2]} 34. Nf4 {[%clk 0:02:14.5]} 34... Rxf2+
{[%clk 0:00:32.9]} 35. Kh3 {[%clk 0:02:15.8]} 35... Rf3 {[%clk 0:00:33.6]} 36.
Rxg6+ {[%clk 0:02:16.1]} 36... Kf7 {[%clk 0:00:34.5]} 37. h5 {[%clk 0:02:14.8]}
37... Rxc3 {[%clk 0:00:32.9]} 38. h6 {[%clk 0:02:13.5]} 38... Rc1 {[%clk
0:00:28.8]} 39. Kg2 {[%clk 0:02:05.3]} 39... Rc2+ {[%clk 0:00:28.8]} 40. Kh3
{[%clk 0:02:05.6]} 40... Rc1 {[%clk 0:00:29.9]} 41. Rg7+ {[%clk 0:01:53.1]}
41... Kf6 {[%clk 0:00:12.4]} 42. Nh5+ {[%clk 0:01:49.5]} 42... Ke6 {[%clk
0:00:13.2]} 43. Kh4 {[%clk 0:01:48]} 43... Be3 {[%clk 0:00:12.4]} 44. Rg6+
{[%clk 0:01:39.5]} 44... Kf7 {[%clk 0:00:12.8]} 45. Rf6+ {[%clk 0:01:40.2]}
45... Ke7 {[%clk 0:00:13.7]} 46. Rxf5 {[%clk 0:01:37.8]} 46... Bxh6 {[%clk
0:00:14.7]} 47. Ra5 {[%clk 0:01:34.5]} 47... Rc4+ {[%clk 0:00:13.2]} 48. g4
{[%clk 0:01:33.9]} 48... Kd6 {[%clk 0:00:09]} 49. Rxa7 {[%clk 0:01:27.2]} 49...
Rc5 {[%clk 0:00:10.3]} 50. Ng3 {[%clk 0:01:24]} 50... Bg5+ {[%clk 0:00:10.5]}
51. Kh5 {[%clk 0:01:24.4]} 51... Bf4+ {[%clk 0:00:10.8]} 52. Nf5+ {[%clk
0:01:25.3]} 52... Ke5 {[%clk 0:00:12.2]} 53. Ra2 {[%clk 0:01:24.6]} 53... Rc6
{[%clk 0:00:12.7]} 54. Re2+ {[%clk 0:01:23]} 54... Kd5 {[%clk 0:00:13.9]} 55.
Ne7+ {[%clk 0:01:23.3]} 55... Kd6 {[%clk 0:00:14.8]} 56. Nxc6 {[%clk 0:01:24.7]}
56... Kxc6 {[%clk 0:00:16.5]} 57. g5 {[%clk 0:01:25.9]} 57... Kd5 {[%clk
0:00:15.2]} 58. g6 {[%clk 0:01:26.8]} 58... Be5 {[%clk 0:00:15.2]} 59. Rxe5+
{[%clk 0:01:27.8]} 59... Kxe5 {[%clk 0:00:16.3]} 60. g7 {[%clk 0:01:29.7]} 1-0

[Event "*** Titled Tuesday 3|2 Blitz (Early)"]
[Site "Chess.com"]
[Date "2016.12.06"]
[Round "2"]
[White "RodinMihail"]
[Black "Quiet_Desperation"]
[Result "1/2-1/2"]
[WhiteElo "2414"]
[BlackElo "2302"]
[TimeControl "180+2"]
[EndTime "11:21:43 PST"]
[Termination "Game drawn by repetition"]

1. e4 {[%clk 0:03:02]} 1... Nc6 {[%clk 0:02:58.2]} 2. Nf3 {[%clk 0:03:02.7]}
2... d6 {[%clk 0:02:59.4]} 3. Nc3 {[%clk 0:03:02.9]} 3... Nf6 {[%clk 0:03:00.7]}
4. d4 {[%clk 0:03:03.7]} 4... d5 {[%clk 0:03:02.1]} 5. exd5 {[%clk 0:02:58.5]}
5... Nxd5 {[%clk 0:03:03.1]} 6. Bc4 {[%clk 0:02:58.6]} 6... Nb6 {[%clk
0:02:55.6]} 7. Bb3 {[%clk 0:02:50.3]} 7... Na5 {[%clk 0:02:53.8]} 8. O-O {[%clk
0:02:43]} 8... Nxb3 {[%clk 0:02:49.9]} 9. axb3 {[%clk 0:02:44.9]} 9... Bg4
{[%clk 0:02:49.4]} 10. d5 {[%clk 0:02:41.4]} 10... g6 {[%clk 0:02:17.2]} 11. h3
{[%clk 0:02:28.5]} 11... Bf5 {[%clk 0:02:12]} 12. Nd4 {[%clk 0:02:21.8]} 12...
Bd7 {[%clk 0:01:54.1]} 13. Bf4 {[%clk 0:02:06.5]} 13... a6 {[%clk 0:01:49.4]}
14. Re1 {[%clk 0:01:58.1]} 14... Nc8 {[%clk 0:01:41]} 15. Be5 {[%clk 0:01:49.8]}
15... Rg8 {[%clk 0:01:37.1]} 16. Ne4 {[%clk 0:01:49.7]} 16... Bg7 {[%clk
0:01:29.3]} 17. Bxg7 {[%clk 0:01:13.5]} 17... Rxg7 {[%clk 0:01:29.3]} 18. Qd2
{[%clk 0:01:14.1]} 18... Kf8 {[%clk 0:01:26.3]} 19. Qh6 {[%clk 0:01:11.9]} 19...
Kg8 {[%clk 0:01:25.7]} 20. Rad1 {[%clk 0:01:08]} 20... Nd6 {[%clk 0:01:18.5]}
21. Ng3 {[%clk 0:01:05.5]} 21... Nb5 {[%clk 0:01:00.6]} 22. Nf3 {[%clk
0:01:02.3]} 22... Nd6 {[%clk 0:00:59.6]} 23. Nd4 {[%clk 0:00:54.2]} 23... Nb5
{[%clk 0:00:59.3]} 24. Ne6 {[%clk 0:00:40.3]} 24... fxe6 {[%clk 0:00:53.2]} 25.
dxe6 {[%clk 0:00:42.2]} 25... Nd6 {[%clk 0:00:54.1]} 26. exd7 {[%clk 0:00:43.4]}
26... Qxd7 {[%clk 0:00:55.5]} 27. c4 {[%clk 0:00:44.3]} 27... Qc6 {[%clk
0:00:34.2]} 28. Rd5 {[%clk 0:00:41.8]} 28... Rf8 {[%clk 0:00:33.7]} 29. Rde5
{[%clk 0:00:30.7]} 29... b5 {[%clk 0:00:26.9]} 30. Rxe7 {[%clk 0:00:28.8]} 30...
Rff7 {[%clk 0:00:28.2]} 31. Rxf7 {[%clk 0:00:26.1]} 31... Rxf7 {[%clk
0:00:27.2]} 32. Qh4 {[%clk 0:00:23]} 32... bxc4 {[%clk 0:00:27.9]} 33. bxc4
{[%clk 0:00:24.7]} 33... Qxc4 {[%clk 0:00:27.5]} 34. Qxc4 {[%clk 0:00:24.5]}
34... Nxc4 {[%clk 0:00:28.4]} 35. Re2 {[%clk 0:00:26.3]} 35... Rd7 {[%clk
0:00:28.6]} 36. Ne4 {[%clk 0:00:27.2]} 36... Rd4 {[%clk 0:00:27.4]} 37. b3
{[%clk 0:00:27]} 37... Nd6 {[%clk 0:00:27.8]} 38. Nc5 {[%clk 0:00:27]} 38... a5
{[%clk 0:00:26.9]} 39. Re7 {[%clk 0:00:26.8]} 39... Nb5 {[%clk 0:00:19.4]} 40.
Ne6 {[%clk 0:00:25.2]} 40... Re4 {[%clk 0:00:20.2]} 41. f3 {[%clk 0:00:22.4]}
41... Re1+ {[%clk 0:00:19.8]} 42. Kf2 {[%clk 0:00:23.2]} 42... Rb1 {[%clk
0:00:21.7]} 43. Ng5 {[%clk 0:00:21.3]} 43... Rxb3 {[%clk 0:00:21]} 44. Nxh7
{[%clk 0:00:22.2]} 44... a4 {[%clk 0:00:21.1]} 45. Rd7 {[%clk 0:00:22.6]} 45...
a3 {[%clk 0:00:21.1]} 46. Nf6+ {[%clk 0:00:24.1]} 46... Kf8 {[%clk 0:00:21.9]}
47. Nh7+ {[%clk 0:00:25]} 47... Ke8 {[%clk 0:00:23.2]} 48. Nf6+ {[%clk
0:00:26.3]} 48... Kf8 {[%clk 0:00:24.6]} 49. Nh7+ {[%clk 0:00:25.2]} 49... Ke8
{[%clk 0:00:24.9]} 50. Nf6+ {[%clk 0:00:26.3]} 50... Kf8 {[%clk 0:00:25]} 51.
Nh7+ {[%clk 0:00:25.7]} 51... Ke8 {[%clk 0:00:25.7]} 52. Nf6+ {[%clk 0:00:26.8]}
1/2-1/2

[Event "*** Titled Tuesday 3|2 Blitz (Early)"]
[Site "Chess.com"]
[Date "2016.12.06"]
[Round "2"]
[White "Apocalyps999"]
[Black "plouarzel"]
[Result "1-0"]
[WhiteElo "2449"]
[BlackElo "2247"]
[TimeControl "180+2"]
[EndTime "11:21:51 PST"]
[Termination "Apocalyps999 won by checkmate"]

1. c4 {[%clk 0:03:02]} 1... e5 {[%clk 0:03:00.8]} 2. Nc3 {[%clk 0:03:02.9]} 2...
Bb4 {[%clk 0:03:01.2]} 3. Nd5 {[%clk 0:03:02.1]} 3... Be7 {[%clk 0:03:02.6]} 4.
d4 {[%clk 0:03:02.5]} 4... exd4 {[%clk 0:03:02.9]} 5. Qxd4 {[%clk 0:03:02.4]}
5... Nf6 {[%clk 0:03:04.4]} 6. Nxe7 {[%clk 0:03:02]} 6... Qxe7 {[%clk
0:03:06.3]} 7. Nf3 {[%clk 0:03:01]} 7... Nc6 {[%clk 0:03:05.9]} 8. Qd1 {[%clk
0:02:52.6]} 8... O-O {[%clk 0:03:05.5]} 9. e3 {[%clk 0:02:53.6]} 9... Rd8 {[%clk
0:03:06.5]} 10. a3 {[%clk 0:02:43.7]} 10... d5 {[%clk 0:03:07.7]} 11. Qc2 {[%clk
0:02:43.8]} 11... d4 {[%clk 0:03:07.1]} 12. Be2 {[%clk 0:02:45]} 12... Bg4
{[%clk 0:02:43.5]} 13. O-O {[%clk 0:02:45.2]} 13... Bxf3 {[%clk 0:01:57.8]} 14.
gxf3 {[%clk 0:02:44.9]} 14... Ne5 {[%clk 0:01:51.4]} 15. exd4 {[%clk 0:02:24.8]}
15... Rxd4 {[%clk 0:01:53.3]} 16. Be3 {[%clk 0:02:19.9]} 16... Rd7 {[%clk
0:01:27.5]} 17. Qf5 {[%clk 0:02:15.3]} 17... g6 {[%clk 0:01:20.4]} 18. Qh3
{[%clk 0:02:08.7]} 18... Qe6 {[%clk 0:01:09.8]} 19. Qxe6 {[%clk 0:02:04]} 19...
fxe6 {[%clk 0:01:11.7]} 20. Rfd1 {[%clk 0:01:54.4]} 20... Rad8 {[%clk
0:01:12.9]} 21. Bg5 {[%clk 0:01:43.3]} 21... Kf7 {[%clk 0:01:13.6]} 22. b3
{[%clk 0:01:42.3]} 22... Nc6 {[%clk 0:01:11.8]} 23. Be3 {[%clk 0:01:39]} 23...
Nd4 {[%clk 0:01:11.1]} 24. Kf1 {[%clk 0:01:28.3]} 24... Nxb3 {[%clk 0:00:58.3]}
25. Rab1 {[%clk 0:01:21.5]} 25... Rxd1+ {[%clk 0:00:52.9]} 26. Bxd1 {[%clk
0:01:22.2]} 26... Na5 {[%clk 0:00:35.9]} 27. Ke2 {[%clk 0:01:22.8]} 27... b6
{[%clk 0:00:35.6]} 28. c5 {[%clk 0:01:18.1]} 28... Nc4 {[%clk 0:00:34]} 29. Bf4
{[%clk 0:01:15]} 29... e5 {[%clk 0:00:32.5]} 30. Bb3 {[%clk 0:01:12.8]} 30...
exf4 {[%clk 0:00:33.8]} 31. Bxc4+ {[%clk 0:01:13.7]} 31... Ke7 {[%clk
0:00:35.4]} 32. Bd3 {[%clk 0:00:57.6]} 32... Rd4 {[%clk 0:00:33.7]} 33. Rc1
{[%clk 0:00:56.6]} 33... Nd5 {[%clk 0:00:26.1]} 34. Be4 {[%clk 0:00:57.8]} 34...
Kd7 {[%clk 0:00:21.3]} 35. h4 {[%clk 0:00:58.9]} 35... Nf6 {[%clk 0:00:19.8]}
36. Bd3 {[%clk 0:00:56.5]} 36... c6 {[%clk 0:00:15.4]} 37. Rb1 {[%clk
0:00:54.5]} 37... Kc7 {[%clk 0:00:16.3]} 38. Rc1 {[%clk 0:00:46.8]} 38... Ra4
{[%clk 0:00:16.5]} 39. cxb6+ {[%clk 0:00:47.8]} 39... axb6 {[%clk 0:00:18.4]}
40. Bb5 {[%clk 0:00:49.1]} 40... Rxa3 {[%clk 0:00:19.8]} 41. Rxc6+ {[%clk
0:00:50.1]} 41... Kb7 {[%clk 0:00:20.9]} 42. Rxf6 {[%clk 0:00:51.2]} 42... Rb3
{[%clk 0:00:22.8]} 43. Rf7+ {[%clk 0:00:52]} 43... Kc8 {[%clk 0:00:24.3]} 44.
Bc6 {[%clk 0:00:51.3]} 44... b5 {[%clk 0:00:24]} 45. Rxh7 {[%clk 0:00:51.4]}
45... b4 {[%clk 0:00:25.4]} 46. Be4 {[%clk 0:00:51.2]} 46... Rc3 {[%clk
0:00:24.8]} 47. Rg7 {[%clk 0:00:51.6]} 47... b3 {[%clk 0:00:25.8]} 48. Rxg6
{[%clk 0:00:52.9]} 48... Kc7 {[%clk 0:00:26.7]} 49. h5 {[%clk 0:00:51.3]} 49...
b2 {[%clk 0:00:27.7]} 50. h6 {[%clk 0:00:51.2]} 50... Rc4 {[%clk 0:00:28.8]} 51.
Rg7+ {[%clk 0:00:49.6]} 51... Kd6 {[%clk 0:00:26.3]} 52. Rb7 {[%clk 0:00:49.8]}
52... Kc5 {[%clk 0:00:27.9]} 53. Rxb2 {[%clk 0:00:48.8]} 53... Ra4 {[%clk
0:00:29.5]} 54. h7 {[%clk 0:00:49]} 54... Kc4 {[%clk 0:00:26]} 55. Bd3+ {[%clk
0:00:47.9]} 55... Kc3 {[%clk 0:00:24.5]} 56. h8=Q+ {[%clk 0:00:48.8]} 56... Rd4
{[%clk 0:00:26.4]} 57. Rc2+ {[%clk 0:00:48.4]} 57... Kb3 {[%clk 0:00:27.9]} 58.
Qxd4 {[%clk 0:00:48.4]} 58... Ka3 {[%clk 0:00:29.6]} 59. Ra2+ {[%clk 0:00:46.1]}
59... Kb3 {[%clk 0:00:30.7]} 60. Qc4# {[%clk 0:00:46.6]} 1-0

[Event "*** Titled Tuesday 3|2 Blitz (Early)"]
[Site "Chess.com"]
[Date "2016.12.06"]
[Round "2"]
[White "Holden-Caulfield"]
[Black "E-Shaposhnikov"]
[Result "0-1"]
[WhiteElo "2476"]
[BlackElo "2712"]
[TimeControl "180+2"]
[EndTime "11:21:57 PST"]
[Termination "E-Shaposhnikov won by checkmate"]

1. d4 {[%clk 0:03:01.9]} 1... Nf6 {[%clk 0:02:55.8]} 2. Nf3 {[%clk 0:03:02]}
2... e6 {[%clk 0:02:56.2]} 3. Bg5 {[%clk 0:03:02.5]} 3... h6 {[%clk 0:02:55.9]}
4. Bh4 {[%clk 0:03:03.3]} 4... c5 {[%clk 0:02:56.3]} 5. c3 {[%clk 0:03:04.3]}
5... b6 {[%clk 0:02:50]} 6. e3 {[%clk 0:03:05.3]} 6... Bb7 {[%clk 0:02:50.5]} 7.
Nbd2 {[%clk 0:03:06.5]} 7... Be7 {[%clk 0:02:46.9]} 8. Be2 {[%clk 0:03:07.4]}
8... O-O {[%clk 0:02:46.8]} 9. O-O {[%clk 0:03:08.2]} 9... d6 {[%clk 0:02:40.7]}
10. a4 {[%clk 0:03:08.8]} 10... a6 {[%clk 0:02:40.6]} 11. h3 {[%clk 0:03:09.2]}
11... Nbd7 {[%clk 0:02:36.6]} 12. Bg3 {[%clk 0:03:10.1]} 12... Qc7 {[%clk
0:02:15.5]} 13. Bh2 {[%clk 0:03:10.5]} 13... Rfe8 {[%clk 0:02:07.1]} 14. Nc4
{[%clk 0:03:09.8]} 14... Ne4 {[%clk 0:02:00.6]} 15. Rc1 {[%clk 0:03:01.5]} 15...
Qc6 {[%clk 0:01:57.1]} 16. Ne1 {[%clk 0:02:42.3]} 16... Ng5 {[%clk 0:01:49.6]}
17. f3 {[%clk 0:02:30.9]} 17... Red8 {[%clk 0:01:25.5]} 18. Nd3 {[%clk
0:02:02.9]} 18... Nh7 {[%clk 0:01:21.7]} 19. b4 {[%clk 0:01:46.4]} 19... Bg5
{[%clk 0:01:07.1]} 20. bxc5 {[%clk 0:01:34]} 20... dxc5 {[%clk 0:01:04.6]} 21.
Kf2 {[%clk 0:01:21.7]} 21... Bh4+ {[%clk 0:00:53.1]} 22. Kg1 {[%clk 0:01:22.4]}
22... Bg5 {[%clk 0:00:53.9]} 23. Kf2 {[%clk 0:01:23.6]} 23... Nhf6 {[%clk
0:00:52.6]} 24. Nce5 {[%clk 0:01:21.5]} 24... Nxe5 {[%clk 0:00:49.6]} 25. Nxe5
{[%clk 0:01:22.6]} 25... Qe8 {[%clk 0:00:46.8]} 26. Qb3 {[%clk 0:01:19.3]} 26...
Nd5 {[%clk 0:00:44.3]} 27. f4 {[%clk 0:01:19.1]} 27... Bh4+ {[%clk 0:00:44.9]}
28. g3 {[%clk 0:01:15.8]} 28... Be7 {[%clk 0:00:45.7]} 29. Bf3 {[%clk
0:01:12.3]} 29... Rab8 {[%clk 0:00:41.3]} 30. Rfd1 {[%clk 0:01:10.7]} 30... f6
{[%clk 0:00:38.5]} 31. Nc4 {[%clk 0:01:09.1]} 31... Bc6 {[%clk 0:00:40]} 32. e4
{[%clk 0:01:04.9]} 32... Bxa4 {[%clk 0:00:37.2]} 33. Qa2 {[%clk 0:01:05.4]}
33... Bxd1 {[%clk 0:00:38.5]} 34. Bxd1 {[%clk 0:01:05.2]} 34... Nc7 {[%clk
0:00:34.9]} 35. Ne3 {[%clk 0:00:59.9]} 35... b5 {[%clk 0:00:33.3]} 36. f5 {[%clk
0:00:56.6]} 36... Qd7 {[%clk 0:00:29.5]} 37. Bb3 {[%clk 0:00:52.3]} 37... c4
{[%clk 0:00:28.4]} 38. Bc2 {[%clk 0:00:53.3]} 38... Qc6 {[%clk 0:00:22.1]} 39.
fxe6 {[%clk 0:00:36.6]} 39... Qxe6 {[%clk 0:00:22.6]} 40. Nf5 {[%clk 0:00:37.8]}
40... Kh8 {[%clk 0:00:18.8]} 41. g4 {[%clk 0:00:39.1]} 41... Rb7 {[%clk
0:00:17.1]} 42. Rf1 {[%clk 0:00:38.7]} 42... b4 {[%clk 0:00:15.6]} 43. cxb4
{[%clk 0:00:33.2]} 43... Bxb4 {[%clk 0:00:17.5]} 44. d5 {[%clk 0:00:32.7]} 44...
Nxd5 {[%clk 0:00:15.7]} 45. exd5 {[%clk 0:00:29.8]} 45... Rxd5 {[%clk
0:00:16.8]} 46. Bf4 {[%clk 0:00:27.5]} 46... Ra5 {[%clk 0:00:14.7]} 47. Ba4
{[%clk 0:00:23.8]} 47... Bc5+ {[%clk 0:00:15.7]} 48. Kg2 {[%clk 0:00:24.4]}
48... Rxa4 {[%clk 0:00:14.4]} 49. Qxa4 {[%clk 0:00:23.1]} 49... Qe2+ {[%clk
0:00:15.6]} 50. Kg3 {[%clk 0:00:21.7]} 50... Qxf1 {[%clk 0:00:16.9]} 51. Qe8+
{[%clk 0:00:20.6]} 51... Kh7 {[%clk 0:00:18.1]} 52. Qe4 {[%clk 0:00:21.9]} 52...
Qf2# {[%clk 0:00:19.2]} 0-1